[Event "*** Titled Tuesday Blitz"]
[Site "Chess.com"]
[Date "2020.05.05"]
[Round "8"]
[White "kinga2008"]
[Black "narutosmith"]
[Result "0-1"]
[WhiteElo "2103"]
[BlackElo "2270"]
[TimeControl "180+1"]
[EndTime "11:35:43 PDT"]
[Termination "narutosmith won by resignation"]

1. d4 {[%clk 0:03:00.9]} 1... Nf6 {[%clk 0:02:59.4]} 2. c4 {[%clk 0:02:57.6]}
2... e6 {[%clk 0:02:59.8]} 3. Nc3 {[%clk 0:02:55.5]} 3... Bb4 {[%clk 0:03:00.3]}
4. Bg5 {[%clk 0:02:50.2]} 4... c5 {[%clk 0:02:58.3]} 5. e3 {[%clk 0:02:47.5]}
5... Bxc3+ {[%clk 0:02:53.6]} 6. bxc3 {[%clk 0:02:46.1]} 6... Qa5 {[%clk
0:02:53.3]} 7. Bxf6 {[%clk 0:02:23.3]} 7... Qxc3+ {[%clk 0:02:52]} 8. Ke2 {[%clk
0:02:21.7]} 8... gxf6 {[%clk 0:02:17.6]} 9. Rc1 {[%clk 0:02:18.2]} 9... Qb2+
{[%clk 0:02:16.1]} 10. Rc2 {[%clk 0:02:14.4]} 10... Qb4 {[%clk 0:02:16]} 11. Nf3
{[%clk 0:02:12.5]} 11... b6 {[%clk 0:01:56.2]} 12. d5 {[%clk 0:02:02.3]} 12...
Ba6 {[%clk 0:01:49.7]} 13. Qd3 {[%clk 0:01:52.4]} 13... Qa4 {[%clk 0:01:08.7]}
14. Nd2 {[%clk 0:01:48.4]} 14... exd5 {[%clk 0:00:59.3]} 15. Qxd5 {[%clk
0:01:42.9]} 15... Qxc2 {[%clk 0:00:56.5]} 16. Qxa8 {[%clk 0:01:37.3]} 16... O-O
{[%clk 0:00:52.1]} 17. Qe4 {[%clk 0:01:25.3]} 17... Qc3 {[%clk 0:00:36.4]} 18.
Qd3 {[%clk 0:00:40.3]} 18... Qb4 {[%clk 0:00:30.9]} 19. f4 {[%clk 0:00:31.2]}
19... Nc6 {[%clk 0:00:25]} 20. Kf2 {[%clk 0:00:21]} 20... d5 {[%clk 0:00:20.1]}
21. Qxd5 {[%clk 0:00:17.9]} 21... Rd8 {[%clk 0:00:18.9]} 22. Qxc6 {[%clk
0:00:16.7]} 22... Qxd2+ {[%clk 0:00:17.8]} 23. Kf3 {[%clk 0:00:11.2]} 23... Rd7
{[%clk 0:00:15.8]} 24. Qxf6 {[%clk 0:00:04.6]} 24... Bb7+ {[%clk 0:00:14.7]} 25.
Kg4 {[%clk 0:00:02.6]} 25... Rd6 {[%clk 0:00:13.9]} 26. Qg5+ {[%clk 0:00:02.5]}
26... Rg6 {[%clk 0:00:14.1]} 27. Qxg6+ {[%clk 0:00:02.7]} 27... hxg6 {[%clk
0:00:14.2]} 28. h4 {[%clk 0:00:01.8]} 28... Qxe3 {[%clk 0:00:13.6]} 29. h5
{[%clk 0:00:02.4]} 29... Qe6+ {[%clk 0:00:12.8]} 30. Kg3 {[%clk 0:00:02.6]}
30... Qf5 {[%clk 0:00:12.6]} 31. hxg6 {[%clk 0:00:02.2]} 31... fxg6 {[%clk
0:00:12.7]} 32. Be2 {[%clk 0:00:01.7]} 32... g5 {[%clk 0:00:12.4]} 33. Bf3
{[%clk 0:00:01.6]} 33... Qxf4+ {[%clk 0:00:12]} 34. Kf2 {[%clk 0:00:02.2]} 34...
Qd2+ {[%clk 0:00:11.8]} 35. Kg3 {[%clk 0:00:01.7]} 35... Qd6+ {[%clk 0:00:11.8]}
36. Kf2 {[%clk 0:00:01.8]} 36... Bxf3 {[%clk 0:00:12.2]} 37. gxf3 {[%clk
0:00:01.8]} 37... Qd2+ {[%clk 0:00:12.1]} 38. Kg3 {[%clk 0:00:02.3]} 38... Qxa2
{[%clk 0:00:11.8]} 39. Rh5 {[%clk 0:00:01.9]} 39... Qd2 {[%clk 0:00:11.3]} 40.
Kg4 {[%clk 0:00:01.6]} 40... Qf4+ {[%clk 0:00:10.8]} 41. Kh3 {[%clk 0:00:02.2]}
41... Qxf3+ {[%clk 0:00:10.9]} 42. Kh2 {[%clk 0:00:02.8]} 42... Qxh5+ {[%clk
0:00:11]} 0-1

[Event "*** Titled Tuesday Blitz"]
[Site "Chess.com"]
[Date "2020.05.05"]
[Round "8"]
[White "blitzking1729"]
[Black "fmshawnrl123"]
[Result "0-1"]
[WhiteElo "2512"]
[BlackElo "2707"]
[TimeControl "180+1"]
[EndTime "11:35:45 PDT"]
[Termination "fmshawnrl123 won by resignation"]

1. d4 {[%clk 0:03:00.9]} 1... Nf6 {[%clk 0:02:55.7]} 2. c4 {[%clk 0:03:00.8]}
2... e6 {[%clk 0:02:56]} 3. Nf3 {[%clk 0:03:00.2]} 3... d5 {[%clk 0:02:55.5]} 4.
Nc3 {[%clk 0:03:00.2]} 4... Bb4 {[%clk 0:02:55.2]} 5. Qa4+ {[%clk 0:03:00.1]}
5... Nc6 {[%clk 0:02:54.9]} 6. e3 {[%clk 0:03:00.5]} 6... O-O {[%clk 0:02:54.6]}
7. Bd2 {[%clk 0:03:00.4]} 7... a6 {[%clk 0:02:51.8]} 8. Rc1 {[%clk 0:02:59.4]}
8... Re8 {[%clk 0:02:51.7]} 9. Bd3 {[%clk 0:02:53]} 9... dxc4 {[%clk 0:02:50.9]}
10. Bxc4 {[%clk 0:02:51.4]} 10... Bd7 {[%clk 0:02:45.4]} 11. Qc2 {[%clk
0:02:48.8]} 11... e5 {[%clk 0:02:43.5]} 12. d5 {[%clk 0:02:24.7]} 12... Ne7
{[%clk 0:02:35.1]} 13. Nxe5 {[%clk 0:02:19.9]} 13... Bxc3 {[%clk 0:02:28.5]} 14.
Bxc3 {[%clk 0:02:15.3]} 14... Nexd5 {[%clk 0:02:26.6]} 15. O-O {[%clk
0:01:54.4]} 15... Be6 {[%clk 0:02:18.9]} 16. Rfd1 {[%clk 0:01:51]} 16... Qe7
{[%clk 0:02:18.6]} 17. Ba5 {[%clk 0:01:31]} 17... Rad8 {[%clk 0:02:03.8]} 18.
Nf3 {[%clk 0:01:17.9]} 18... Rd7 {[%clk 0:01:50.6]} 19. e4 {[%clk 0:01:13.7]}
19... Nf4 {[%clk 0:01:46.3]} 20. Rxd7 {[%clk 0:01:08.2]} 20... Bxd7 {[%clk
0:01:32.5]} 21. Bxc7 {[%clk 0:01:04.1]} 21... N6h5 {[%clk 0:01:14.2]} 22. Bxf4
{[%clk 0:00:48.3]} 22... Nxf4 {[%clk 0:01:15.1]} 23. Re1 {[%clk 0:00:47.3]}
23... Bg4 {[%clk 0:01:11.8]} 24. Nd2 {[%clk 0:00:38.4]} 24... Qg5 {[%clk
0:01:08.2]} 25. Re3 {[%clk 0:00:20.3]} 25... Bd1 {[%clk 0:00:36.7]} 26. Rg3
{[%clk 0:00:10.4]} 26... Qxg3 {[%clk 0:00:34.9]} 27. hxg3 {[%clk 0:00:10.1]}
27... Bxc2 {[%clk 0:00:35.5]} 28. gxf4 {[%clk 0:00:10.4]} 28... Bxe4 {[%clk
0:00:35.4]} 29. f3 {[%clk 0:00:08.6]} 29... Bc6 {[%clk 0:00:34.7]} 30. Kf2
{[%clk 0:00:08.9]} 30... Rd8 {[%clk 0:00:32.6]} 31. Ke2 {[%clk 0:00:07.1]} 31...
Bd5 {[%clk 0:00:29.9]} 32. Bxd5 {[%clk 0:00:06.5]} 32... Rxd5 {[%clk 0:00:30.8]}
33. Ne4 {[%clk 0:00:06.6]} 33... f6 {[%clk 0:00:30.3]} 34. b3 {[%clk 0:00:06.6]}
34... Ra5 {[%clk 0:00:28.8]} 35. a4 {[%clk 0:00:06]} 35... Rd5 {[%clk
0:00:29.4]} 36. Nc3 {[%clk 0:00:05.9]} 36... Rd8 {[%clk 0:00:27.4]} 37. Ne4
{[%clk 0:00:05.7]} 37... Kf7 {[%clk 0:00:27.3]} 38. f5 {[%clk 0:00:06.1]} 38...
Rd5 {[%clk 0:00:25.6]} 39. Ke3 {[%clk 0:00:05]} 39... Ke7 {[%clk 0:00:20.7]} 40.
g4 {[%clk 0:00:04.9]} 40... h5 {[%clk 0:00:19.1]} 41. Nc3 {[%clk 0:00:03.2]}
41... Re5+ {[%clk 0:00:19.1]} 42. Kd4 {[%clk 0:00:02.6]} 42... h4 {[%clk
0:00:18.9]} 43. Nd5+ {[%clk 0:00:01.7]} 43... Rxd5+ {[%clk 0:00:18.2]} 44. Kxd5
{[%clk 0:00:01.7]} 44... h3 {[%clk 0:00:19.1]} 0-1

[Event "*** Titled Tuesday Blitz"]
[Site "Chess.com"]
[Date "2020.05.05"]
[Round "8"]
[White "GukeshDommaraju"]
[Black "cassoulet"]
[Result "0-1"]
[WhiteElo "2770"]
[BlackElo "2610"]
[TimeControl "180+1"]
[EndTime "11:35:45 PDT"]
[Termination "cassoulet won by checkmate"]

1. e4 {[%clk 0:03:00.9]} 1... c5 {[%clk 0:02:59.6]} 2. Nf3 {[%clk 0:03:01.1]}
2... Nc6 {[%clk 0:03:00.3]} 3. Bb5 {[%clk 0:03:00.6]} 3... g6 {[%clk 0:03:00]}
4. Bxc6 {[%clk 0:03:01]} 4... bxc6 {[%clk 0:03:00.9]} 5. d4 {[%clk 0:03:00.5]}
5... cxd4 {[%clk 0:02:57.7]} 6. Qxd4 {[%clk 0:03:00.5]} 6... Nf6 {[%clk
0:02:56.9]} 7. c4 {[%clk 0:02:56.6]} 7... Qb6 {[%clk 0:02:39.1]} 8. c5 {[%clk
0:02:19.8]} 8... Qa6 {[%clk 0:02:38.4]} 9. Nc3 {[%clk 0:02:17.5]} 9... Bg7
{[%clk 0:02:32.2]} 10. e5 {[%clk 0:02:13]} 10... Nd5 {[%clk 0:02:32.4]} 11. Nxd5
{[%clk 0:02:08.9]} 11... cxd5 {[%clk 0:02:33.3]} 12. Be3 {[%clk 0:01:47]} 12...
Rb8 {[%clk 0:02:13.4]} 13. b4 {[%clk 0:01:43.9]} 13... Qb5 {[%clk 0:01:56.3]}
14. Bd2 {[%clk 0:01:33.1]} 14... Ba6 {[%clk 0:01:54.5]} 15. Qe3 {[%clk
0:01:32.5]} 15... O-O {[%clk 0:01:39.1]} 16. a4 {[%clk 0:01:31.3]} 16... Qc4
{[%clk 0:01:31.6]} 17. Rc1 {[%clk 0:01:22.9]} 17... Qa2 {[%clk 0:01:14.2]} 18.
b5 {[%clk 0:01:19.4]} 18... Bb7 {[%clk 0:01:14.1]} 19. Qd4 {[%clk 0:01:17.5]}
19... f6 {[%clk 0:01:07.8]} 20. Bf4 {[%clk 0:01:10.6]} 20... fxe5 {[%clk
0:01:01.9]} 21. Bxe5 {[%clk 0:01:08.9]} 21... Bxe5 {[%clk 0:00:54.8]} 22. Nxe5
{[%clk 0:01:09]} 22... d6 {[%clk 0:00:23]} 23. Ng4 {[%clk 0:00:28.8]} 23... e5
{[%clk 0:00:22.4]} 24. Qd2 {[%clk 0:00:21.6]} 24... Qxa4 {[%clk 0:00:14.3]} 25.
h3 {[%clk 0:00:21]} 25... Qxb5 {[%clk 0:00:12.5]} 26. cxd6 {[%clk 0:00:19.9]}
26... Rbc8 {[%clk 0:00:11.9]} 27. d7 {[%clk 0:00:17]} 27... Rcd8 {[%clk
0:00:10.7]} 28. Rc7 {[%clk 0:00:15.2]} 28... Ba6 {[%clk 0:00:10.6]} 29. f3
{[%clk 0:00:10.4]} 29... Rxd7 {[%clk 0:00:10.5]} 30. Rxd7 {[%clk 0:00:08.6]}
30... Qxd7 {[%clk 0:00:11.4]} 31. Nxe5 {[%clk 0:00:07.7]} 31... Qe7 {[%clk
0:00:11.6]} 32. Qd4 {[%clk 0:00:08]} 32... Re8 {[%clk 0:00:11.8]} 33. f4 {[%clk
0:00:08]} 33... Qh4+ {[%clk 0:00:12.1]} 34. Kd2 {[%clk 0:00:07.4]} 34... Qg3
{[%clk 0:00:11]} 35. Rc1 {[%clk 0:00:05.9]} 35... Qxg2+ {[%clk 0:00:11.2]} 36.
Kc3 {[%clk 0:00:04.6]} 36... Rc8+ {[%clk 0:00:11.4]} 37. Kb4 {[%clk 0:00:02.6]}
37... Rxc1 {[%clk 0:00:11.1]} 38. Qxa7 {[%clk 0:00:03.3]} 38... Qb2+ {[%clk
0:00:10]} 39. Ka5 {[%clk 0:00:03.7]} 39... Ra1# {[%clk 0:00:10.9]} 0-1

[Event "*** Titled Tuesday Blitz"]
[Site "Chess.com"]
[Date "2020.05.05"]
[Round "8"]
[White "cstevens1"]
[Black "kuba2006"]
[Result "1-0"]
[WhiteElo "2614"]
[BlackElo "2427"]
[TimeControl "180+1"]
[EndTime "11:35:48 PDT"]
[Termination "cstevens1 won on time"]

1. e4 {[%clk 0:01:25.5]} 1... Nf6 {[%clk 0:03:00.9]} 2. e5 {[%clk 0:01:25.5]}
2... Nd5 {[%clk 0:03:00.4]} 3. d4 {[%clk 0:01:25.3]} 3... d6 {[%clk 0:03:00.5]}
4. c4 {[%clk 0:01:25.3]} 4... Nb6 {[%clk 0:02:59.5]} 5. exd6 {[%clk 0:01:26.2]}
5... exd6 {[%clk 0:03:00.1]} 6. Nc3 {[%clk 0:01:25.2]} 6... Be7 {[%clk
0:03:00.3]} 7. h3 {[%clk 0:01:25.2]} 7... O-O {[%clk 0:03:00.3]} 8. Nf3 {[%clk
0:01:25.6]} 8... Bf6 {[%clk 0:03:00.3]} 9. Be2 {[%clk 0:01:23.9]} 9... Nc6
{[%clk 0:02:59.7]} 10. O-O {[%clk 0:01:21.4]} 10... Bf5 {[%clk 0:02:58.5]} 11.
d5 {[%clk 0:01:19.6]} 11... Ne5 {[%clk 0:02:56]} 12. Nd4 {[%clk 0:01:19.2]}
12... Bd7 {[%clk 0:02:39.3]} 13. b3 {[%clk 0:01:19.2]} 13... c5 {[%clk
0:02:34.7]} 14. dxc6 {[%clk 0:01:18.9]} 14... bxc6 {[%clk 0:02:35.6]} 15. Be3
{[%clk 0:01:16.2]} 15... Qc7 {[%clk 0:02:33.9]} 16. Rc1 {[%clk 0:01:15.4]} 16...
Rad8 {[%clk 0:02:28.6]} 17. Qd2 {[%clk 0:01:15.4]} 17... Bc8 {[%clk 0:02:25.4]}
18. Rfd1 {[%clk 0:01:15.2]} 18... g6 {[%clk 0:02:20.9]} 19. Ne4 {[%clk 0:01:04]}
19... Bg7 {[%clk 0:02:17.5]} 20. Bg5 {[%clk 0:00:56.5]} 20... f6 {[%clk
0:01:57.2]} 21. Bh6 {[%clk 0:00:56.4]} 21... Rfe8 {[%clk 0:01:50.9]} 22. Bxg7
{[%clk 0:00:56.2]} 22... Kxg7 {[%clk 0:01:51.3]} 23. Qf4 {[%clk 0:00:51.2]}
23... f5 {[%clk 0:01:37.5]} 24. Nc3 {[%clk 0:00:48.5]} 24... Bb7 {[%clk
0:01:30.2]} 25. h4 {[%clk 0:00:43]} 25... a6 {[%clk 0:01:23.7]} 26. Qg5 {[%clk
0:00:34.1]} 26... Nf7 {[%clk 0:01:10.8]} 27. Qg3 {[%clk 0:00:24.3]} 27... Qe7
{[%clk 0:01:05]} 28. Nxf5+ {[%clk 0:00:22.2]} 28... Kg8 {[%clk 0:00:41.3]} 29.
Nxe7+ {[%clk 0:00:23.1]} 29... Rxe7 {[%clk 0:00:40.7]} 30. h5 {[%clk 0:00:24]}
30... Re6 {[%clk 0:00:36.9]} 31. Bd3 {[%clk 0:00:22]} 31... Ne5 {[%clk 0:00:35]}
32. hxg6 {[%clk 0:00:21.6]} 32... hxg6 {[%clk 0:00:25.6]} 33. Bb1 {[%clk
0:00:21.6]} 33... Kh7 {[%clk 0:00:10]} 34. c5 {[%clk 0:00:20.9]} 34... Nc8
{[%clk 0:00:08.8]} 35. cxd6 {[%clk 0:00:20.4]} 35... Nxd6 {[%clk 0:00:08.9]} 36.
Ne4 {[%clk 0:00:19.9]} 36... Nxe4 {[%clk 0:00:07.9]} 37. Bxe4 {[%clk 0:00:20.8]}
37... Rde8 {[%clk 0:00:06]} 38. Bb1 {[%clk 0:00:19.8]} 38... Bc8 {[%clk
0:00:04.5]} 39. Rd4 {[%clk 0:00:19.2]} 39... Kg7 {[%clk 0:00:03.4]} 40. Re4
{[%clk 0:00:19.5]} 40... Bb7 {[%clk 0:00:02.4]} 41. Rce1 {[%clk 0:00:19]} 41...
Kf6 {[%clk 0:00:01.3]} 42. Qf4+ {[%clk 0:00:17.6]} 42... Kg7 {[%clk 0:00:01.9]}
43. Rxe5 {[%clk 0:00:18.1]} 1-0

[Event "*** Titled Tuesday Blitz"]
[Site "Chess.com"]
[Date "2020.05.05"]
[Round "8"]
[White "MFguimaraes"]
[Black "stolencandy13"]
[Result "0-1"]
[WhiteElo "2407"]
[BlackElo "2545"]
[TimeControl "180+1"]
[EndTime "11:35:49 PDT"]
[Termination "stolencandy13 won by resignation"]

1. e4 {[%clk 0:03:00.9]} 1... c6 {[%clk 0:03:00.1]} 2. d4 {[%clk 0:03:00.2]}
2... d5 {[%clk 0:03:01]} 3. Nd2 {[%clk 0:03:00.6]} 3... dxe4 {[%clk 0:03:01]} 4.
Nxe4 {[%clk 0:03:01.5]} 4... Bf5 {[%clk 0:03:01.5]} 5. Qf3 {[%clk 0:03:00.3]}
5... e6 {[%clk 0:02:57.1]} 6. Ne2 {[%clk 0:02:58.8]} 6... Be7 {[%clk 0:02:53.9]}
7. N4g3 {[%clk 0:02:46.1]} 7... Bxc2 {[%clk 0:02:46.1]} 8. Nh5 {[%clk
0:02:44.8]} 8... Bf6 {[%clk 0:02:45.5]} 9. Be3 {[%clk 0:02:38.9]} 9... Qb6
{[%clk 0:02:38.1]} 10. b3 {[%clk 0:02:23.2]} 10... Bg6 {[%clk 0:02:38.2]} 11.
Nxf6+ {[%clk 0:02:20.9]} 11... Nxf6 {[%clk 0:02:39.1]} 12. Nc3 {[%clk
0:02:04.3]} 12... Nd5 {[%clk 0:02:32.3]} 13. Nxd5 {[%clk 0:02:02.1]} 13... cxd5
{[%clk 0:02:31.8]} 14. Be2 {[%clk 0:01:53.8]} 14... Qb4+ {[%clk 0:02:30.5]} 15.
Bd2 {[%clk 0:01:53.8]} 15... Qxd4 {[%clk 0:02:26.6]} 16. Bc3 {[%clk 0:01:53.6]}
16... Qe4 {[%clk 0:02:16.3]} 17. Bxg7 {[%clk 0:01:51.6]} 17... Qxf3 {[%clk
0:02:13.4]} 18. Bxf3 {[%clk 0:01:47.7]} 18... Rg8 {[%clk 0:02:12.3]} 19. Bb2
{[%clk 0:01:43.8]} 19... Nc6 {[%clk 0:02:11.1]} 20. O-O {[%clk 0:01:37.4]} 20...
Rc8 {[%clk 0:02:03.1]} 21. Rac1 {[%clk 0:01:36]} 21... Kd7 {[%clk 0:01:59.9]}
22. Rc5 {[%clk 0:01:35.8]} 22... b6 {[%clk 0:01:55.7]} 23. Rcc1 {[%clk
0:01:33.2]} 23... Nb4 {[%clk 0:01:54.2]} 24. Bf6 {[%clk 0:01:19.7]} 24... Nd3
{[%clk 0:01:46.1]} 25. Rcd1 {[%clk 0:01:14.2]} 25... Rc2 {[%clk 0:01:43]} 26. a4
{[%clk 0:01:13.1]} 26... Rgc8 {[%clk 0:01:41]} 27. h4 {[%clk 0:01:12.6]} 27...
h5 {[%clk 0:01:33.8]} 28. Bxh5 {[%clk 0:01:09.7]} 28... Bxh5 {[%clk 0:01:24.5]}
29. Rxd3 {[%clk 0:01:10]} 29... Be2 {[%clk 0:01:24.6]} 30. Rh3 {[%clk
0:00:59.7]} 30... Bxf1 {[%clk 0:01:23.1]} 31. Kxf1 {[%clk 0:01:00.6]} 31... Ra2
{[%clk 0:01:05.5]} 32. g4 {[%clk 0:00:59.1]} 32... Rcc2 {[%clk 0:00:32.5]} 33.
Rf3 {[%clk 0:00:58.4]} 33... Ke8 {[%clk 0:00:29.5]} 34. h5 {[%clk 0:00:51.9]}
34... Kf8 {[%clk 0:00:26.1]} 35. g5 {[%clk 0:00:51.1]} 35... Kg8 {[%clk
0:00:23.6]} 36. h6 {[%clk 0:00:48.5]} 36... Kh7 {[%clk 0:00:22.9]} 37. Bg7
{[%clk 0:00:32.3]} 37... Rc7 {[%clk 0:00:20.1]} 38. Be5 {[%clk 0:00:31]} 38...
Rd7 {[%clk 0:00:17.8]} 39. Rc3 {[%clk 0:00:22.2]} 39... d4 {[%clk 0:00:15.6]}
40. Rc8 {[%clk 0:00:22.3]} 40... d3 {[%clk 0:00:13.9]} 41. Rh8+ {[%clk
0:00:22.1]} 41... Kg6 {[%clk 0:00:14.1]} 42. Rg8+ {[%clk 0:00:21.9]} 42... Kf5
{[%clk 0:00:13]} 43. Bc3 {[%clk 0:00:14.3]} 43... d2 {[%clk 0:00:11.1]} 44. Bxd2
{[%clk 0:00:14]} 44... Rdxd2 {[%clk 0:00:10.9]} 45. h7 {[%clk 0:00:14.7]} 45...
Rxf2+ {[%clk 0:00:11]} 46. Kg1 {[%clk 0:00:15.3]} 46... Rg2+ {[%clk 0:00:11.1]}
47. Kh1 {[%clk 0:00:15.5]} 47... Rh2+ {[%clk 0:00:11.1]} 48. Kg1 {[%clk
0:00:15.7]} 48... Rxh7 {[%clk 0:00:11.7]} 0-1

[Event "*** Titled Tuesday Blitz"]
[Site "Chess.com"]
[Date "2020.05.05"]
[Round "8"]
[White "Eloist"]
[Black "BelaKis"]
[Result "1/2-1/2"]
[WhiteElo "2233"]
[BlackElo "2067"]
[TimeControl "180+1"]
[EndTime "11:35:49 PDT"]
[Termination "Game drawn by repetition"]

1. e4 {[%clk 0:03:00.9]} 1... g6 {[%clk 0:02:58.3]} 2. d4 {[%clk 0:03:00.8]}
2... Bg7 {[%clk 0:02:58.6]} 3. Nc3 {[%clk 0:03:00.8]} 3... c5 {[%clk 0:02:58.7]}
4. dxc5 {[%clk 0:02:58.8]} 4... Na6 {[%clk 0:02:52.2]} 5. Bxa6 {[%clk
0:02:48.5]} 5... bxa6 {[%clk 0:02:52.2]} 6. Nge2 {[%clk 0:02:45]} 6... Bb7
{[%clk 0:02:51.8]} 7. O-O {[%clk 0:02:40.3]} 7... Nf6 {[%clk 0:02:50.8]} 8. f3
{[%clk 0:02:34.8]} 8... O-O {[%clk 0:02:49.8]} 9. Be3 {[%clk 0:02:32.4]} 9...
Ne8 {[%clk 0:02:36.1]} 10. Qd2 {[%clk 0:02:21.4]} 10... Nc7 {[%clk 0:02:35.5]}
11. Rad1 {[%clk 0:02:13.9]} 11... Bc6 {[%clk 0:02:31.6]} 12. Nd4 {[%clk
0:02:08.5]} 12... Ne6 {[%clk 0:02:05.4]} 13. Nxc6 {[%clk 0:02:00.7]} 13... dxc6
{[%clk 0:02:05.5]} 14. Qxd8 {[%clk 0:01:52]} 14... Rfxd8 {[%clk 0:02:06.1]} 15.
Rxd8+ {[%clk 0:01:37.7]} 15... Rxd8 {[%clk 0:02:04.8]} 16. Rd1 {[%clk
0:01:36.6]} 16... Bxc3 {[%clk 0:01:34.1]} 17. Rxd8+ {[%clk 0:01:34]} 17... Nxd8
{[%clk 0:01:34.8]} 18. bxc3 {[%clk 0:01:34]} 18... e5 {[%clk 0:01:22.5]} 19. Kf2
{[%clk 0:01:26.4]} 19... f5 {[%clk 0:01:02.5]} 20. Bg5 {[%clk 0:01:08.8]} 20...
Nb7 {[%clk 0:00:56.6]} 21. Bf6 {[%clk 0:01:02.9]} 21... fxe4 {[%clk 0:00:49.2]}
22. fxe4 {[%clk 0:00:46.9]} 22... Nxc5 {[%clk 0:00:46.9]} 23. Bxe5 {[%clk
0:00:36.2]} 23... Nxe4+ {[%clk 0:00:44.2]} 24. Ke3 {[%clk 0:00:36]} 24... Nc5
{[%clk 0:00:39]} 25. Bb8 {[%clk 0:00:28.3]} 25... Kf7 {[%clk 0:00:30.9]} 26.
Bxa7 {[%clk 0:00:27.3]} 26... Nd7 {[%clk 0:00:26.8]} 27. Bd4 {[%clk 0:00:19.3]}
27... Ke6 {[%clk 0:00:26.9]} 28. c4 {[%clk 0:00:18]} 28... c5 {[%clk 0:00:25.5]}
29. Bc3 {[%clk 0:00:16.6]} 29... Nb6 {[%clk 0:00:24.4]} 30. Kd3 {[%clk
0:00:15.5]} 30... Kf5 {[%clk 0:00:24.7]} 31. Bg7 {[%clk 0:00:13.6]} 31... h5
{[%clk 0:00:23.1]} 32. Bf8 {[%clk 0:00:13.5]} 32... Nd7 {[%clk 0:00:22.4]} 33.
Be7 {[%clk 0:00:13.4]} 33... g5 {[%clk 0:00:21.2]} 34. h3 {[%clk 0:00:12.3]}
34... g4 {[%clk 0:00:21]} 35. Ke3 {[%clk 0:00:11.8]} 35... Ke6 {[%clk
0:00:18.4]} 36. Bg5 {[%clk 0:00:10.8]} 36... Kf5 {[%clk 0:00:18.8]} 37. Bh4
{[%clk 0:00:09]} 37... Nb6 {[%clk 0:00:18.3]} 38. Kd3 {[%clk 0:00:08.7]} 38...
Kf4 {[%clk 0:00:18.3]} 39. Bf2 {[%clk 0:00:07.8]} 39... Nd7 {[%clk 0:00:17.9]}
40. a4 {[%clk 0:00:06.9]} 40... g3 {[%clk 0:00:16.2]} 41. Bg1 {[%clk 0:00:06.4]}
41... Ne5+ {[%clk 0:00:13.7]} 42. Kc3 {[%clk 0:00:06.6]} 42... Nd7 {[%clk
0:00:13.1]} 43. Kd3 {[%clk 0:00:05.5]} 43... Ne5+ {[%clk 0:00:12.8]} 44. Kc3
{[%clk 0:00:05.4]} 44... Nd7 {[%clk 0:00:11.2]} 45. Kd3 {[%clk 0:00:04.6]}
1/2-1/2